DepartmentFamily,Entity,Date,ExpenseType,ExpenseArea,Supplier,Transaction Number,Amount,Description,Supplier Type,VAT Registration Number
BEIS,The Insolvency Service,01/04/2021,DTS - Staff Costs,Digital Technology Services,KPMG LLP,300028111,1474,Training,Large,791788859
BEIS,The Insolvency Service,01/04/2021,DTS - CET - BAU,Digital Technology Services,Geoff Smith Associates Ltd,300028116,25314.13,IT - Run,SME,813047166
BEIS,The Insolvency Service,01/04/2021,LSD - Civil Litigation Disqualifications,Legal Services Division,Lexis Nexis,300028109,839,Publications,Large,730859520
BEIS,The Insolvency Service,01/04/2021,Projects - Desktops & Hosting,Projects,Symity LTD,300028122,12240,Consultancy,Large,192278875
BEIS,The Insolvency Service,01/04/2021,Projects - Core Telephony and Network,Projects,"Department for Environment, Food and Rural Affairs (DEFRA)",300027865,1110.03,Property Maintenance - CS1,Large,888800181
BEIS,The Insolvency Service,01/04/2021,LSD - Senior Paralegal Team,Legal Services Division,5 Stone Buildings,300028110,3060,Costs of Civil Litigation Disqualifications,SME,998486332
BEIS,The Insolvency Service,06/04/2021,Projects - Remedial Applications,Projects,Ibm Uk Ltd,300028062,121848.88,IT - Refresh,Large,107328000
BEIS,The Insolvency Service,06/04/2021,Projects - Remedial Applications,Projects,Ibm Uk Ltd,300028063,121848.88,IT - Refresh,Large,107328000
BEIS,The Insolvency Service,06/04/2021,BSD - Scanning,Business Service Division,Iron Mountain (Uk) Ltd,300028189,34864.58,Storage - OR,Large,607937516
BEIS,The Insolvency Service,06/04/2021,DTS - Costs,Digital Technology Services,Thales Uk Ltd. (L&J),300028125,40826,IT - Transform,Large,198955680
BEIS,The Insolvency Service,06/04/2021,Projects - Estates 2020,Projects,Thales Uk Ltd. (L&J),300028190,37863.2,Estates Professional Services,Large,198955680
BEIS,The Insolvency Service,06/04/2021,Projects - Core Telephony and Network,Projects,Thales Uk Ltd. (L&J),300028193,19596,IT - Transform,Large,198955680
BEIS,The Insolvency Service,06/04/2021,IES - Forensic Computing Unit,Investigations & Enforcement Services,Md5 Ltd,300028149,638,Case Related Costs,SME,
BEIS,The Insolvency Service,06/04/2021,ORS - Ipswich & Cambridge,Official Receiver Services,Natural England,300028126,546.73,Postage,Public Sector,551065074
BEIS,The Insolvency Service,06/04/2021,IES - Forensic Computing Unit,Investigations & Enforcement Services,Avatu Limited,300028187,960,IT - Run,SME,578500228
BEIS,The Insolvency Service,06/04/2021,DTS - Costs,Digital Technology Services,Advanced 365 Limited,300028182,6361.91,IT - Run,Large,927547983
BEIS,The Insolvency Service,06/04/2021,DTS - Costs,Digital Technology Services,Nomensa Limited,300028127,29310,IT - Transform,Large,771727411
BEIS,The Insolvency Service,06/04/2021,DTS - Costs,Digital Technology Services,Nomensa Limited,300028127,10300,IT - Transform,Large,771727411
BEIS,The Insolvency Service,06/04/2021,DTS - Costs,Digital Technology Services,Nomensa Limited,300028128,57630,IT - Transform,Large,771727411
BEIS,The Insolvency Service,06/04/2021,Projects - Desktops & Hosting,Projects,Identity Experts Limited,300028201,18000,IT - Transform,SME,189003893
BEIS,The Insolvency Service,06/04/2021,BSD - RPS,Business Service Division,Randstad Solutions Ltd,300028179,1283.16,Agency Staff & Contractor Costs,Large,492435726
BEIS,The Insolvency Service,07/04/2021,BSD - Scanning,Business Service Division,Quadient UK,300028130,1195.1,Office supplies,Large,
BEIS,The Insolvency Service,07/04/2021,BSD - Scanning,Business Service Division,Quadient UK Limited,300028121,8278.2,Postage,Large,
BEIS,The Insolvency Service,07/04/2021,BSD - Scanning,Business Service Division,Quadient UK Limited,300028129,1000,Postage,Large,
BEIS,The Insolvency Service,07/04/2021,BSD - Scanning,Business Service Division,Royal Mail (Response Services),300028197,5184,Postage,Large,243170002
BEIS,The Insolvency Service,07/04/2021,BSD - Scanning,Business Service Division,Royal Mail (Response Services),300028207,610.79,Postage,Large,243170002
BEIS,The Insolvency Service,07/04/2021,DTS - Staff Costs,Digital Technology Services,Cabinet Office,300028241,2858.25,Recruitment Costs,Large,888801080
BEIS,The Insolvency Service,07/04/2021,Projects - Estates 2020,Projects,Thales Uk Ltd. (L&J),300028191,39393.67,Estates Professional Services,Large,198955680
BEIS,The Insolvency Service,07/04/2021,DTS - Costs,Digital Technology Services,Thales Uk Ltd. (L&J),300028192,5992.8,IT - Run,Large,198955680
BEIS,The Insolvency Service,07/04/2021,Projects - Desktops & Hosting,Projects,Thales Uk Ltd. (L&J),300028194,13533.6,Agency Staff & Contractor Costs,Large,198955680
BEIS,The Insolvency Service,07/04/2021,IES - Forensic Computing Unit,Investigations & Enforcement Services,Md5 Ltd,300028203,515,Case Related Costs,SME,
BEIS,The Insolvency Service,07/04/2021,IES - Forensic Computing Unit,Investigations & Enforcement Services,Md5 Ltd,300028204,515,Case Related Costs,SME,
BEIS,The Insolvency Service,07/04/2021,IES - Forensic Computing Unit,Investigations & Enforcement Services,Md5 Ltd,300028205,515,Case Related Costs,SME,
BEIS,The Insolvency Service,07/04/2021,IES - Forensic Computing Unit,Investigations & Enforcement Services,Md5 Ltd,300028206,515,Case Related Costs,SME,
BEIS,The Insolvency Service,07/04/2021,IES - Forensic Computing Unit,Investigations & Enforcement Services,Md5 Ltd,300028214,515,Case Related Costs,SME,
BEIS,The Insolvency Service,07/04/2021,IES - Forensic Computing Unit,Investigations & Enforcement Services,Md5 Ltd,300028216,675.86,Case Related Costs,SME,
BEIS,The Insolvency Service,07/04/2021,IES - Forensic Computing Unit,Investigations & Enforcement Services,Md5 Ltd,300028219,504,Case Related Costs,SME,
BEIS,The Insolvency Service,07/04/2021,P&C - Learning & Talent DELA,People & Capability,KPMG LLP,300028209,2500,Training,Large,791788859
BEIS,The Insolvency Service,07/04/2021,P&C - Learning & Talent DELA,People & Capability,KPMG LLP,300028210,2920,Training,Large,791788859
BEIS,The Insolvency Service,07/04/2021,P&C - Learning & Talent DELA,People & Capability,KPMG LLP,300028211,4540,Training,Large,791788859
BEIS,The Insolvency Service,07/04/2021,BSD - Scanning,Business Service Division,Royal Mail (Renewals),300028208,2208,Postage,Large,243170002
BEIS,The Insolvency Service,07/04/2021,DTS - Costs,Digital Technology Services,Nomensa Limited,300028196,263340,IT - Run,Large,771727411
BEIS,The Insolvency Service,07/04/2021,RPS � Holiday Pay,Business Service Division,Nomensa Limited,300028199,89128.8,IT - Run,Large,771727411
BEIS,The Insolvency Service,07/04/2021,Projects ,Projects,NTT DATA UK LIMITED,300028200,10320,IT - Transform,Large,159334590
BEIS,The Insolvency Service,07/04/2021,BSD - Customer Insight,Business Service Division,DJS Research Limited,300028120,37050,Customer Research and Accreditation,SME,775718779
BEIS,The Insolvency Service,08/04/2021,F&C - Accommodation Birkenhead,Finance & Commercial,HM Land Registry (F&C - Estates),300028285,1476.37,Electricity,Public Sector,
BEIS,The Insolvency Service,08/04/2021,CED - Channels & Communications,Chief Executive Office,Cision,300028279,801.6,Publications,Large,757158012
BEIS,The Insolvency Service,08/04/2021,BSD - Scanning,Business Service Division,Banner Business Services Ltd,300028263,1783.31,Office supplies,Large,731860439
BEIS,The Insolvency Service,08/04/2021,ORS - Case Administration Direct,Official Receiver Services,Royal Mail (Redirection),300028273,1296,Finance - OR Case Disbursements,Large,
BEIS,The Insolvency Service,08/04/2021,ORS - Director,Official Receiver Services,Thomson Reuters Professional Uk Ltd,300028281,57110.23,Publications,Large,
BEIS,The Insolvency Service,08/04/2021,IES - Business Delivery Team,Investigations & Enforcement Services,Thomson Reuters Professional Uk Ltd,300028281,51733.37,Publications,Large,
BEIS,The Insolvency Service,08/04/2021,SPA - IP Regulation,"Strategy, Policy & Analysis",Thomson Reuters Professional Uk Ltd,300028281,2649.6,Publications,Large,
BEIS,The Insolvency Service,08/04/2021,SPA - Agency Policy,"Strategy, Policy & Analysis",Thomson Reuters Professional Uk Ltd,300028281,7306.8,Publications,Large,
BEIS,The Insolvency Service,08/04/2021,P&C - Learning & Talent DELA,People & Capability,Capita Business Services Ltd,300028239,5240.55,Training,Large,618184140
BEIS,The Insolvency Service,08/04/2021,BSD - Customer Insight,Business Service Division,G4s Assessment Services Uk (M Assessment Services Ltd),300028266,2112,Consultancy,SME,
BEIS,The Insolvency Service,08/04/2021,DTS - Costs,Digital Technology Services,Advanced 365 Limited,300028272,2039.95,IT - Run,Large,927547983
BEIS,The Insolvency Service,08/04/2021,F&C - Accommodation Blackpool,Finance & Commercial,Castle Water Limited,300028286,1185.7,Water,Large,319427788
BEIS,The Insolvency Service,08/04/2021,RPS � Holiday Pay,Business Service Division,Nomensa Limited,300028264,2940,IT - Refresh,Large,771727411
BEIS,The Insolvency Service,08/04/2021,DTS - Costs,Digital Technology Services,Nomensa Limited,300028267,70882.8,IT - Run,Large,771727411
BEIS,The Insolvency Service,08/04/2021,F&C - Accommodation Brighton,Finance & Commercial,Brighton & Hove City Council,300028277,12350.25,Rates,Large,
BEIS,The Insolvency Service,08/04/2021,F&C - Accommodation Chatham,Finance & Commercial,Portal Chatham LLP,300028265,900,Landlord Service Charge,SME,933428619
BEIS,The Insolvency Service,09/04/2021,BSD - Estate Accounts,Business Service Division,City Sprint Uk Ltd,300028278,1075.86,Courier,SME,997327364
BEIS,The Insolvency Service,09/04/2021,P&C - Learning & Talent DELA,People & Capability,Capita Business Services Ltd,300028284,5240.55,Training,Large,618184140
BEIS,The Insolvency Service,09/04/2021,DTS - Staff Costs,Digital Technology Services,Netcompany UK Ltd,300028315,20520,Outside IR35 Non Perm Resource,Large,171809009
BEIS,The Insolvency Service,09/04/2021,SPA - Strategy Director,"Strategy, Policy & Analysis",April Strategy LLP,300028123,64512,Outside IR35 Non Perm Resource,SME,927406420
BEIS,The Insolvency Service,12/04/2021,F&C - Accommodation Southampton,Finance & Commercial,Maritime & Coastguard Agency,300028326,21326.63,Rent,Public Sector,
BEIS,The Insolvency Service,12/04/2021,F&C - Accommodation Southampton,Finance & Commercial,Maritime & Coastguard Agency,300028326,13400,Landlord Service Charge,Public Sector,
BEIS,The Insolvency Service,12/04/2021,F&C - Accommodation Southampton,Finance & Commercial,Maritime & Coastguard Agency,300028327,42653.26,Rent,Public Sector,
BEIS,The Insolvency Service,12/04/2021,F&C - Accommodation Southampton,Finance & Commercial,Maritime & Coastguard Agency,300028327,26800,Landlord Service Charge,Public Sector,
BEIS,The Insolvency Service,12/04/2021,F&C - Commercial,Finance & Commercial,ALEXANDER MANN SOLUTIONS,300028212,49739.09,Agency Staff & Contractor Costs,Large,7444926120
BEIS,The Insolvency Service,12/04/2021,DTS - Costs,Digital Technology Services,Netcompany UK Ltd,300028309,27763.2,IT - Run,Large,171809009
BEIS,The Insolvency Service,12/04/2021,DTS - Costs,Digital Technology Services,Netcompany UK Ltd,300028312,2688,IT - Run,Large,171809009
BEIS,The Insolvency Service,12/04/2021,Projects,Projects,SmartSourcing,300027512,11827.2,Outside IR35 Non Perm Resource,SME,788507869
BEIS,The Insolvency Service,12/04/2021,F&C - Accommodation Ipswich,Finance & Commercial,Kash Group Properties Ltd,300028350,10487.86,Rent,SME,180995664
BEIS,The Insolvency Service,12/04/2021,F&C - Accommodation Ipswich,Finance & Commercial,Kash Group Properties Ltd,300028350,9402.9,Rates,SME,180995664
BEIS,The Insolvency Service,13/04/2021,P&C - Learning & Talent DELA,People & Capability,BPP Professional Education,300028353,33570,Training,Large,466451629
BEIS,The Insolvency Service,13/04/2021,DTS - Costs,Digital Technology Services,Ukcloud Ltd,300028221,11678.98,IT - Run,SME,172647982
BEIS,The Insolvency Service,13/04/2021,SPA - Agency Policy,"Strategy, Policy & Analysis",Lexis Nexis,300027818,821.58,Publications,Large,730859520
BEIS,The Insolvency Service,13/04/2021,BSD - RPS,Business Service Division,Lexis Nexis,300027818,5122.44,Publications,Large,730859520
BEIS,The Insolvency Service,13/04/2021,ORS - Director,Official Receiver Services,Lexis Nexis,300027818,7605.85,Publications,Large,730859520
BEIS,The Insolvency Service,13/04/2021,IES - Business Delivery Team,Investigations & Enforcement Services,Lexis Nexis,300027818,6889.54,Publications,Large,730859520
BEIS,The Insolvency Service,13/04/2021,SPA - Agency Policy,"Strategy, Policy & Analysis",Lexis Nexis,300027818,716.31,Publications,Large,730859520
BEIS,The Insolvency Service,13/04/2021,BSD - RPS,Business Service Division,Lexis Nexis,300027818,4467.08,Publications,Large,730859520
BEIS,The Insolvency Service,13/04/2021,ORS - Director,Official Receiver Services,Lexis Nexis,300027818,8723.54,Publications,Large,730859520
BEIS,The Insolvency Service,13/04/2021,IES - Business Delivery Team,Investigations & Enforcement Services,Lexis Nexis,300027818,7902.23,Publications,Large,730859520
BEIS,The Insolvency Service,13/04/2021,DTS - Costs,Digital Technology Services,Netcompany UK Ltd,300028311,16258.8,IT - Run,Large,171809009
BEIS,The Insolvency Service,13/04/2021,DTS - Costs,Digital Technology Services,Netcompany UK Ltd,300028313,8177.4,IT - Transform,Large,171809009
BEIS,The Insolvency Service,13/04/2021,DTS - Costs,Digital Technology Services,Advanced 365 Limited,300028213,1699.98,IT - Run,Large,927547983
BEIS,The Insolvency Service,13/04/2021,DTS - Costs,Digital Technology Services,Advanced 365 Limited,300028270,4419.88,IT - Run,Large,927547983
BEIS,The Insolvency Service,13/04/2021,P&C - HR Operations,People & Capability,Edenred (UK Group) Ltd,300028328,1979.1,Cycle to work scheme,Large,649503520
BEIS,The Insolvency Service,14/04/2021,IT - Service delivery,Digital Technology Services,Daisy Corporate Services Trading Limited,300028376,38097.64,IT - Transform,Large,722471355
BEIS,The Insolvency Service,14/04/2021,CED - Channels & Communications,Chief Executive Office,Granicus,300028364,975.8,IT - ATOS,SME,943669974
BEIS,The Insolvency Service,14/04/2021,DTS - Systems,Digital Technology Services,Insight Direct (UK) Ltd,300028378,87776.8,IT - Run,Large,746075129
BEIS,The Insolvency Service,14/04/2021,Projects - Remedial Applications,Projects,Netcompany UK Ltd,300028314,1557.6,Agency Staff & Contractor Costs,Large,171809009
BEIS,The Insolvency Service,14/04/2021,DTS - Costs,Digital Technology Services,Advanced 365 Limited,300028365,5001,IT - Transform,Large,927547983
BEIS,The Insolvency Service,14/04/2021,F&C - Accommodation Brighton,Finance & Commercial,Oakley Property Ltd,300028367,2094.07,Landlord Service Charge,SME,754788085
BEIS,The Insolvency Service,15/04/2021,F&C - Accommodation Birmingham,Finance & Commercial,Jones Lang Lasalle (Amas Ltd) - (Rent & Property Costs),300028387,7532.75,Landlord Service Charge,Large,
BEIS,The Insolvency Service,15/04/2021,P&C - Learning & Talent DELA,People & Capability,Dods Parlimentary Communications Ltd,300028358,1750,Training,SME,792067900
BEIS,The Insolvency Service,15/04/2021,DTS - Staff Costs,Digital Technology Services,The Knowledge Academy Limited,300028377,550,Training,SME,
BEIS,The Insolvency Service,15/04/2021,BSD - RPS,Business Service Division,Nomensa Limited,300028383,14550,IT - Transform,Large,771727411
BEIS,The Insolvency Service,15/04/2021,Projects - Desktops & Hosting,Projects,e2e-assure Ltd,300028402,26995.5,IT - Transform,SME,173116233
BEIS,The Insolvency Service,15/04/2021,F&C - Accommodation Birmingham,Finance & Commercial,Jones Lang Lasalle (Amas Ltd) - (Rent & Property Costs),300028390,-1186.84,Landlord Service Charge,Large,
BEIS,The Insolvency Service,16/04/2021,DTS - DRO - BAU,Digital Technology Services,Experian Qas Ltd,300028445,1794,IT - Run,Large,887133593
BEIS,The Insolvency Service,16/04/2021,DTS - DRO - BAU,Digital Technology Services,Experian Qas Ltd,300028446,9783.6,IT - Run,Large,887133593
BEIS,The Insolvency Service,16/04/2021,DTS - Staff Costs,Digital Technology Services,Cabinet Office,300027996,3389.5,Recruitment Costs,Large,888801080
BEIS,The Insolvency Service,16/04/2021,P&C - Learning & Talent DELA,People & Capability,Capita Business Services Ltd,300028404,7673.67,Training,Large,618184140
BEIS,The Insolvency Service,16/04/2021,ORS,Official Receiver Services,Ukcloud Ltd,300028222,21226.28,Storage - OR,SME,172647982
BEIS,The Insolvency Service,16/04/2021,RPS � Holiday Pay,Business Service Division,Insight Direct (UK) Ltd,300028433,17602.18,Agency Staff & Contractor Costs,Large,746075129
BEIS,The Insolvency Service,16/04/2021,F&C - Accommodation Reading,Finance & Commercial,Montagu Evans LLP,300028401,26940.74,Rent,Large,888800181
BEIS,The Insolvency Service,19/04/2021,ORS - Senior Official Receiver,Official Receiver Services,Insolvency Service,300028400,580,"Fruitless, ex-Gratia and Compensation Payment",Public Sector,
BEIS,The Insolvency Service,19/04/2021,F&C - Accommodation Croydon,Finance & Commercial,Croydon Council,300028472,78204,Rates,Public Sector,218591255
BEIS,The Insolvency Service,19/04/2021,CED - Change Delivery,Chief Executive Office,SmartSourcing,300028434,4848,Outside IR35 Non Perm Resource,SME,788507869
BEIS,The Insolvency Service,19/04/2021,Projects,Projects,SmartSourcing,300028436,16500,Outside IR35 Non Perm Resource,SME,788507869
BEIS,The Insolvency Service,19/04/2021,Projects,Projects,SmartSourcing,300028437,14916,Outside IR35 Non Perm Resource,SME,788507869
BEIS,The Insolvency Service,19/04/2021,Projects,Projects,SmartSourcing,300028438,19800,Outside IR35 Non Perm Resource,SME,788507869
BEIS,The Insolvency Service,19/04/2021,CED - Change Delivery,Chief Executive Office,SmartSourcing,300028439,18630,Outside IR35 Non Perm Resource,SME,788507869
BEIS,The Insolvency Service,19/04/2021,Projects,Projects,SmartSourcing,300028440,5355,Outside IR35 Non Perm Resource,SME,788507869
BEIS,The Insolvency Service,19/04/2021,CED - Change Delivery,Chief Executive Office,SmartSourcing,300028441,12172.7,Outside IR35 Non Perm Resource,SME,788507869
BEIS,The Insolvency Service,19/04/2021,CED - Change Delivery,Chief Executive Office,SmartSourcing,300028451,13601.28,Outside IR35 Non Perm Resource,SME,788507869
BEIS,The Insolvency Service,19/04/2021,CED - Change Delivery,Chief Executive Office,SmartSourcing,300028452,22521.6,Outside IR35 Non Perm Resource,SME,788507869
BEIS,The Insolvency Service,19/04/2021,CED - Change Delivery,Chief Executive Office,SmartSourcing,300028453,12696,Outside IR35 Non Perm Resource,SME,788507869
BEIS,The Insolvency Service,19/04/2021,CED - Change Delivery,Chief Executive Office,SmartSourcing,300028454,19596,Outside IR35 Non Perm Resource,SME,788507869
BEIS,The Insolvency Service,19/04/2021,CED - Change Delivery,Chief Executive Office,SmartSourcing,300028458,16146,Outside IR35 Non Perm Resource,SME,788507869
BEIS,The Insolvency Service,19/04/2021,CED - Change Delivery,Chief Executive Office,SmartSourcing,300028459,16146,Outside IR35 Non Perm Resource,SME,788507869
BEIS,The Insolvency Service,19/04/2021,CED - Change Delivery,Chief Executive Office,SmartSourcing,300028461,13110,Outside IR35 Non Perm Resource,SME,788507869
BEIS,The Insolvency Service,19/04/2021,Projects,Projects,SmartSourcing,300028463,3216,Outside IR35 Non Perm Resource,SME,788507869
BEIS,The Insolvency Service,19/04/2021,F&C - Accommodation Leeds,Finance & Commercial,Arc Business Interiors,300028478,24905.88,Estates Professional Services,SME,857128506
BEIS,The Insolvency Service,19/04/2021,F&C - Corporate Governance,Finance & Commercial,Pertemps Recruitment Partnership Limited,300028477,558,Agency Staff & Contractor Costs,Large,844278800
BEIS,The Insolvency Service,19/04/2021,BSD - RPS,Business Service Division,Randstad Solutions Ltd,300028469,1023.07,Agency Staff & Contractor Costs,Large,492435726
BEIS,The Insolvency Service,21/04/2021,CED - Chief Operating Officer,Chief Executive Office,Agilisys Ltd,300028499,7980,Consultancy,Large,791711713
BEIS,The Insolvency Service,21/04/2021,IES - Business Delivery Team,Investigations & Enforcement Services,SUNDRY SUPPLIER,300028520,750,Staff Subscriptions,,
BEIS,The Insolvency Service,21/04/2021,ORS,Official Receiver Services,Purdie Worldwide,300028511,930.69,Storage - OR,Large,208569880
BEIS,The Insolvency Service,21/04/2021,F&C - Accommodation Plymouth,Finance & Commercial,Plymouth City Council (Rent),300028547,-2994,Rates,Public Sector,
BEIS,The Insolvency Service,22/04/2021,BSD - Central Management Team (CMT),Business Service Division,KPMG,300028528,1755,Training,Large,
BEIS,The Insolvency Service,22/04/2021,DTS - Systems,Digital Technology Services,Trustmarque Solutions Ltd,300028405,2066.15,IT - Run,Large,727348615
BEIS,The Insolvency Service,22/04/2021,P&C - Learning & Talent DELA,People & Capability,Tms Development International Ltd,300028533,691,Training,SME,551650063
BEIS,The Insolvency Service,22/04/2021,DTS - Costs,Digital Technology Services,Thales Uk Ltd. (L&J),300028532,5109.6,IT - Transform,Large,198955680
BEIS,The Insolvency Service,22/04/2021,ORS,Official Receiver Services,Pricewaterhouse Coopers LLP,300028310,68461.2,Solicitors Investigations,Large,243823957
BEIS,The Insolvency Service,22/04/2021,DTS - Systems,Digital Technology Services,Insight Direct (UK) Ltd,300028470,103652.64,IT - Run,Large,746075129
BEIS,The Insolvency Service,22/04/2021,CED - Change Delivery,Chief Executive Office,SmartSourcing,300028456,13200,Outside IR35 Non Perm Resource,SME,788507869
BEIS,The Insolvency Service,22/04/2021,ORS - Director,Official Receiver Services,Nomensa Limited,300028524,69120,IT - Transform,Large,771727411
BEIS,The Insolvency Service,22/04/2021,BSD - RPS,Business Service Division,Randstad Solutions Ltd,300028525,1040.4,Agency Staff & Contractor Costs,Large,492435726
BEIS,The Insolvency Service,23/04/2021,DTS - Costs,Digital Technology Services,Insight Direct (UK) Ltd,300028560,85319.62,IT - Run,Large,746075129
BEIS,The Insolvency Service,23/04/2021,F&C - Commercial,Finance & Commercial,ALEXANDER MANN SOLUTIONS,300028363,34819.36,Agency Staff & Contractor Costs,Large,7444926120
BEIS,The Insolvency Service,23/04/2021,F&C - Commercial,Finance & Commercial,ALEXANDER MANN SOLUTIONS,300028531,45231.98,Agency Staff & Contractor Costs,Large,7444926120
BEIS,The Insolvency Service,23/04/2021,ORS - Senior Official Receiver,Official Receiver Services,SUNDRY SUPPLIER,300028510,580,"Fruitless, ex-Gratia and Compensation Payment",,
BEIS,The Insolvency Service,23/04/2021,DTS - Costs,Digital Technology Services,Symity LTD,300028503,18902.92,Telephones - Charges,Large,192278875
BEIS,The Insolvency Service,23/04/2021,F&C - Corporate Governance,Finance & Commercial,Pertemps Recruitment Partnership Limited,300028536,2232,Agency Staff & Contractor Costs,Large,844278800
BEIS,The Insolvency Service,23/04/2021,F&C - Corporate Governance,Finance & Commercial,Pertemps Recruitment Partnership Limited,300028539,2232,Agency Staff & Contractor Costs,Large,844278800
BEIS,The Insolvency Service,26/04/2021,P&C - Learning & Talent DELA,People & Capability,KPMG LLP,300028355,2808,Training,Large,791788859
BEIS,The Insolvency Service,26/04/2021,DTS - Staff Costs,Digital Technology Services,KPMG LLP,300028447,1474,Training,Large,791788859
BEIS,The Insolvency Service,26/04/2021,DTS - Staff Costs,Digital Technology Services,KPMG LLP,300028448,676,Training,Large,791788859
BEIS,The Insolvency Service,26/04/2021,DTS - Staff Costs,Digital Technology Services,KPMG LLP,300028449,676,Training,Large,791788859
BEIS,The Insolvency Service,26/04/2021,F&C - Core Finance,Finance & Commercial,KPMG LLP,300028450,793,Training,Large,791788859
BEIS,The Insolvency Service,26/04/2021,DTS - Costs,Digital Technology Services,Insight Direct (UK) Ltd,300028500,77480.33,IT - Run,Large,746075129
BEIS,The Insolvency Service,26/04/2021,Projects,Projects,SmartSourcing,300028435,750,Outside IR35 Non Perm Resource,SME,788507869
BEIS,The Insolvency Service,26/04/2021,CED - Change Delivery,Chief Executive Office,SmartSourcing,300028455,13524,Outside IR35 Non Perm Resource,SME,788507869
BEIS,The Insolvency Service,26/04/2021,CED - Change Delivery,Chief Executive Office,SmartSourcing,300028457,7830,Outside IR35 Non Perm Resource,SME,788507869
BEIS,The Insolvency Service,26/04/2021,CED - Change Delivery,Chief Executive Office,SmartSourcing,300028460,14214,Outside IR35 Non Perm Resource,SME,788507869
BEIS,The Insolvency Service,26/04/2021,Projects,Projects,SmartSourcing,300028462,900,Outside IR35 Non Perm Resource,SME,788507869
BEIS,The Insolvency Service,26/04/2021,Projects,Projects,SmartSourcing,300028464,678,Outside IR35 Non Perm Resource,SME,788507869
BEIS,The Insolvency Service,26/04/2021,F&C - Corporate Governance,Finance & Commercial,Pertemps Recruitment Partnership Limited,300028537,1953,Agency Staff & Contractor Costs,Large,844278800
BEIS,The Insolvency Service,27/04/2021,CED - Chief Executive,Chief Executive Office,Association Of Chief Executives,300028598,650,Staff Subscriptions,SME,
BEIS,The Insolvency Service,27/04/2021,BSD - RPS,Business Service Division,Randstad Solutions Ltd,300028559,1283.16,Agency Staff & Contractor Costs,Large,492435726
BEIS,The Insolvency Service,27/04/2021,Projects,Projects,The Digital Accessibility Centre Ltd (DAC),300028597,3240,IT - Transform,SME,105063068
BEIS,The Insolvency Service,27/04/2021,LSD - Criminal Prosecutions,Legal Services Division,John H Dove,300028596,2558.29,Costs of Criminal Prosecutions and Advice,SME,410010054
BEIS,The Insolvency Service,28/04/2021,DTS - Costs,Digital Technology Services,Bt Telephone Payment Centre,300028577,5937.36,IT - Run,Large,245719348
BEIS,The Insolvency Service,28/04/2021,Projects,Projects,Ricoh Uk Limited,300025296,1380,IT - Transform,Large,
BEIS,The Insolvency Service,28/04/2021,DTS - Costs,Digital Technology Services,Ricoh Uk Limited,300028587,3120,IT - Run,Large,
BEIS,The Insolvency Service,28/04/2021,F&C - Accommodation Exeter,Finance & Commercial,Prydis Support Ltd,300028611,13866.29,Landlord Service Charge,SME,974841283
BEIS,The Insolvency Service,28/04/2021,DTS - EAS - BAU,Digital Technology Services,Hague Computer Supplies,300028592,510,IT - Run,SME,333613774
BEIS,The Insolvency Service,28/04/2021,F&C - Accommodation General,Finance & Commercial,GPA (C/O Montagu Evans LLP),300028623,32743.45,Property Maintenance - CS2,Large,
BEIS,The Insolvency Service,28/04/2021,IES - Business Delivery Team,Investigations & Enforcement Services,National Crime Agency,300028610,522,Staff Subscriptions,Public Sector,888849824
BEIS,The Insolvency Service,28/04/2021,ORS,Official Receiver Services,Restore Plc (Records Management),300028590,7166.39,Storage - HQ,Large,843863011
BEIS,The Insolvency Service,28/04/2021,DTS - Costs,Digital Technology Services,Advanced 365 Limited,300028304,62017.81,IT - Run,Large,927547983
BEIS,The Insolvency Service,28/04/2021,DTS - Costs,Digital Technology Services,Symity LTD,300028580,16065,Telephones - Charges,Large,192278875
BEIS,The Insolvency Service,28/04/2021,F&C - Accommodation Nottingham,Finance & Commercial,GPA (C/O Montagu Evans LLP),300028351,-2817.6,Rent,Large,
BEIS,The Insolvency Service,28/04/2021,F&C - Accommodation General,Finance & Commercial,GPA (C/O Montagu Evans LLP),300028600,-2809.85,Property Maintenance - CS2,Large,
BEIS,The Insolvency Service,29/04/2021,P&C - HR Operations,People & Capability,Government Legal Department,300028612,2534.64,Legal Costs Other,Public Sector,888823066
BEIS,The Insolvency Service,29/04/2021,P&C - HR Operations,People & Capability,Government Legal Department,300028620,2479.8,Legal Costs Other,Public Sector,888823066
BEIS,The Insolvency Service,29/04/2021,DTS - Costs,Digital Technology Services,Bt Telephone Payment Centre,300028579,5850.54,IT - Run,Large,245719348
BEIS,The Insolvency Service,29/04/2021,P&C - Learning & Talent DELA,People & Capability,Capita Business Services Ltd,300028647,2620.28,Training,Large,618184140
BEIS,The Insolvency Service,29/04/2021,F&C - Commercial,Finance & Commercial,ALEXANDER MANN SOLUTIONS,300028588,44004.52,Agency Staff & Contractor Costs,Large,7444926120
BEIS,The Insolvency Service,29/04/2021,DTS - Costs,Digital Technology Services,Advanced 365 Limited,300028564,5737.5,IT - Transform,Large,927547983
BEIS,The Insolvency Service,29/04/2021,F&C - Corporate Governance,Finance & Commercial,Pertemps Recruitment Partnership Limited,300028591,2790,Agency Staff & Contractor Costs,Large,844278800
BEIS,The Insolvency Service,29/04/2021,ORS - Director,Official Receiver Services,Maitland Chambers,300028621,2640,Legal Costs Other,SME,171817696
BEIS,The Insolvency Service,29/04/2021,LSD - Criminal Prosecutions,Legal Services Division,John H Dove,300028644,1075.61,Costs of Criminal Prosecutions and Advice,SME,410010054
BEIS,The Insolvency Service,30/04/2021,LSD,Legal Services Division,Pricewaterhouse Coopers LLP,300028669,75471.6,Costs of Civil Litigation Disqualifications,Large,243823957
BEIS,The Insolvency Service,30/04/2021,DTS - Costs,Digital Technology Services,Advanced 365 Limited,300027973,173464.5,IT - Run,Large,927547983
BEIS,The Insolvency Service,30/04/2021,DTS - Costs,Digital Technology Services,Advanced 365 Limited,300028305,148503.84,IT - Run,Large,927547983
BEIS,The Insolvency Service,30/04/2021,DTS - Costs,Digital Technology Services,Advanced 365 Limited,300028641,3825.02,IT - Run,Large,927547983
BEIS,The Insolvency Service,30/04/2021,DTS - Costs,Digital Technology Services,Nomensa Limited,300028283,225757.2,IT - Run,Large,771727411
BEIS,The Insolvency Service,30/04/2021,DTS - Costs,Digital Technology Services,NTT DATA UK LIMITED,300028667,25194,IT - Run,Large,159334590
BEIS,The Insolvency Service,30/04/2021,P&C - Learning & Talent DELA,People & Capability,Public Relations and Communications Association,300028668,5610,Training,Large,239474925
